bitfinex/quotes_ETHUSD_20220226
["timestamp","ask_amount","ask_price","bid_price","bid_amount"]
[1645865964043,3.077e-05,2756.3,2756.1,7.2565]
[1645865964243,3.077e-05,2756.3,2756.2,0.1451]
[1645865964448,3.077e-05,2756.3,2756.2,7.4015]
[1645865964843,0.00436931,2756.3,2756.2,18.3064]
[1645865965250,0.00436931,2756.3,2756.2,7.40918947]
[1645865965444,0.00436931,2756.3,2756.2,7.2564]
[1645865965643,3.077e-05,2756.3,2756.2,8.46054223]
[1645865965847,3.077e-05,2756.3,2756.2,7.2564]
[1645865966246,3.077e-05,2756.3,2756.2,19.43065507]
[1645865966445,3.077e-05,2756.3,2756.2,19.42209656]
[1645865966646,3.077e-05,2756.3,2756.2,21.42209656]
[1645865967285,3.077e-05,2756.3,2756.2,10.37209656]
[1645865967487,3.077e-05,2756.3,2756.2,9.37209656]
[1645865967688,3.077e-05,2756.3,2756.2,8.2564]
[1645865967892,3.077e-05,2756.3,2756.2,7.2564]
[1645865968091,3.077e-05,2756.3,2756.2,8.6770766]
[1645865968288,3.077e-05,2756.3,2756.2,7.2564]
[1645865970292,3.077e-05,2756.3,2755.2,0.25]
[1645865970495,0.3636,2756.2,2755.2,0.25]
[1645865970694,0.3636,2756.0,2754.7,0.90755]
[1645865970890,0.3636,2756.0,2755.2,1.33736309]
[1645865971335,0.3636,2756.0,2755.0,0.00316376]
[1645865971733,0.90758,2756.2,2754.7,0.90755]
[1645865971934,0.90758,2756.2,2755.0,0.00330597]
[1645865971935,0.00419192,2755.6,2755.0,0.00330597]
[1645865972733,0.00419192,2755.6,2755.1,1.23967012]
[1645865973035,0.3636,2756.1,2755.6,1.36782778]
[1645865973235,3.077e-05,2756.3,2755.0,0.91079597]
[1645865974039,3.077e-05,2756.3,2755.0,0.90749]
[1645865974444,0.00419186,2755.8,2755.0,12.17216437]
[1645865974642,0.00419186,2755.8,2755.1,12.85155648]
[1645865974890,0.00419186,2755.8,2755.4,1.0]
[1645865975290,3.077e-05,2756.3,2755.4,1.0]
[1645865976792,0.00419705,2756.0,2755.4,1.0]
[1645865976992,0.00419705,2756.0,2755.4,1.20545643]
[1645865977193,0.00419705,2756.0,2755.4,1.0]
[1645865977793,3.077e-05,2756.3,2755.4,1.0]
[1645865977995,0.00419711,2755.8,2755.6,0.90729]
[1645865978198,0.00419711,2755.8,2755.6,1.12555567]
[1645865978393,0.00419711,2755.8,2755.7,1.0]
[1645865978858,3.077e-05,2756.3,2755.7,1.0]
[1645865979252,0.00419709,2755.9,2755.7,1.0]
[1645865980252,3.077e-05,2756.3,2755.7,1.0]
[1645865980552,3.077e-05,2756.3,2755.8,1.35802813]
[1645865980553,0.00427438,2755.9,2755.8,1.35802813]
[1645865981454,3.077e-05,2756.3,2755.7,1.0]
[1645865981652,0.00320337,2756.0,2755.7,1.0]
[1645865982480,3.077e-05,2756.3,2755.7,1.0]
[1645865982683,0.00320337,2756.0,2755.7,1.0]
[1645865983787,3.077e-05,2756.3,2755.7,1.0]
[1645865983987,0.00442315,2756.0,2755.7,1.0]
[1645865984187,0.00442315,2756.0,2755.7,1.90726]
[1645865984387,0.00442315,2756.0,2755.7,12.95726]
[1645865984588,0.00442315,2756.0,2755.7,13.11247791]
[1645865984987,3.077e-05,2756.3,2755.7,1.0]
[1645865985189,0.00320035,2756.0,2755.7,1.0]
[1645865985388,0.00320035,2756.0,2755.4,1.0]
[1645865986056,3.077e-05,2756.3,2755.8,1.32240965]
[1645865986351,0.00320035,2755.8,2755.2,6.87463014]
[1645865986554,0.00320035,2755.8,2755.3,1.0]
[1645865986752,0.00320035,2755.8,2755.2,4.151]
[1645865986953,0.00320035,2755.8,2755.1,0.90904014]
[1645865987355,3.077e-05,2756.3,2755.1,0.90904014]
[1645865987551,0.00320029,2755.6,2755.1,0.90904014]
[1645865987751,0.00320029,2755.6,2755.1,1.11764485]
[1645865988052,0.00320029,2755.6,2755.1,1.81650014]
[1645865988456,0.36363077,2756.3,2755.1,1.81650014]
[1645865988657,0.36363077,2756.3,2755.3,1.40274859]
[1645865988855,0.00442008,2755.6,2755.3,1.40274859]
[1645865989657,3.077e-05,2756.3,2755.3,1.40274859]
[1645865989917,0.00442019,2755.6,2755.3,13.36010859]
[1645865990116,0.00442019,2755.6,2755.3,2.92549298]
[1645865990319,0.00442019,2755.6,2755.5,1.0]
[1645865990718,0.00442019,2755.6,2755.5,1.433]
[1645865991019,3.077e-05,2756.3,2755.5,1.433]
[1645865991216,0.00442023,2755.7,2755.5,11.64350911]
[1645865991417,2.023e-05,2755.7,2755.6,1.0]
[1645865991618,3.077e-05,2756.3,2755.7,0.00077977]
[1645865991816,3.077e-05,2756.3,2756.0,12.96507907]
[1645865992016,3.077e-05,2756.3,2756.2,11.05]
[1645865992223,2.4531542,2757.5,2756.3,7.0]
[1645865992417,2.4531542,2757.5,2756.7,17.05]
[1645865992617,2.4531542,2757.5,2757.0,0.3]
[1645865992816,2.4531542,2757.5,2757.1,0.90679]
[1645865993645,0.2308,2757.8,2757.2,1.28735107]
[1645865993646,0.00442258,2757.4,2757.2,1.28735107]
[1645865994744,0.2308,2757.8,2757.2,1.28735107]
[1645865994941,0.00442258,2757.4,2757.3,3.5]
[1645865995143,0.00442258,2757.4,2757.2,1.28735107]
[1645865995342,0.00442258,2757.4,2757.3,0.90674]
[1645865995545,0.00442258,2757.4,2757.0,2.5465]
[1645865995744,0.2308,2757.8,2757.1,7.254]
[1645865996246,0.00442256,2757.5,2757.1,7.254]
[1645865996647,0.00442256,2757.5,2756.6,1.74470906]
[1645865996648,0.01275203,2757.2,2756.6,1.74470906]
[1645865996846,0.01275203,2757.2,2755.9,1.8137605]
[1645865996847,0.01238787,2756.7,2755.9,1.15719]
[1645865997043,7.88727933,2757.8,2756.0,3.5]
[1645865997044,0.5087,2757.7,2756.0,3.5]
[1645865997305,0.00442276,2757.0,2755.7,5.62628863]
[1645865997505,0.00442276,2757.0,2755.7,6.05928863]
[1645865997703,0.00442276,2757.0,2756.4,1.27279703]
[1645865998303,0.3636,2757.4,2756.4,1.27279703]
[1645865998506,0.00442742,2756.8,2756.4,1.27279703]
[1645865998913,0.00442742,2756.8,2756.4,12.32279703]
[1645865999110,0.00442742,2756.8,2756.5,3.5]
[1645865999409,2.4531542,2757.7,2756.6,1.0]
[1645865999611,2.4531542,2757.7,2756.7,3.5]
[1645865999810,0.91141448,2758.2,2756.7,3.5]
[1645865999811,0.01770718,2757.2,2756.7,3.5]
[1645866000012,0.01770718,2757.2,2756.8,0.90689]
[1645866000210,0.01770718,2757.2,2756.9,12.70254108]
[1645866000412,0.01770718,2757.2,2756.9,23.20050258]
[1645866000413,7.18e-06,2757.2,2756.9,23.20050258]
[1645866000614,0.00446448,2758.2,2757.0,0.42285528]
[1645866000814,0.00446448,2758.2,2757.1,3.5]
[1645866001061,1.89621141,2758.1,2757.1,3.8]
[1645866001247,1.89621141,2758.1,2757.0,0.433]
[1645866001248,0.3636,2758.1,2757.0,0.433]
[1645866001466,0.3636,2758.1,2756.9,8.2543]
[1645866001467,0.3636,2757.9,2757.2,1.44316003]
[1645866001647,0.3636,2757.9,2756.9,8.2543]
[1645866001848,0.3636,2757.7,2756.9,7.2543]
[1645866002048,0.36795045,2757.7,2756.9,7.25817488]
[1645866002751,1.89657989,2757.6,2756.9,7.25817488]
[1645866002953,0.00446448,2757.9,2756.9,7.25817488]
[1645866002954,0.3636,2757.4,2756.9,5.61906948]
[1645866003350,0.3636,2757.3,2756.9,5.62294436]
[1645866003553,0.3636,2757.1,2756.2,0.25]
[1645866003758,6.0,2757.2,2756.0,1.10855463]
[1645866003759,0.01221822,2756.7,2756.0,1.10855463]
[1645866003960,3.63346235,2757.4,2756.0,1.10855463]
[1645866003961,0.00435055,2757.4,2756.0,1.10855463]
[1645866004156,0.5,2757.7,2756.1,0.90712]
[1645866004355,1.53297394,2757.6,2756.1,0.90712]
[1645866004811,0.3636,2757.4,2756.1,0.90712]
[1645866005213,1.8141946,2757.7,2756.1,0.90712]
[1645866005214,0.3636,2757.6,2756.1,0.90712]
[1645866005414,1.89654969,2757.5,2756.1,0.90712]
[1645866005614,0.3636,2757.5,2756.6,0.00098052]
[1645866005817,0.3636,2757.3,2756.6,0.00098052]
[1645866006618,0.3636,2757.3,2755.9,1.25]
[1645866006816,0.3636,2757.1,2755.9,1.25]
[1645866007016,0.00416839,2757.3,2756.8,0.00325855]
[1645866007216,1.8967358,2757.2,2756.8,0.00325855]
[1645866007416,11.4136,2757.0,2756.8,0.00325855]
[1645866007615,0.3636,2757.0,2756.8,0.00325855]
[1645866007815,0.3636,2756.8,2755.9,0.25]
[1645866008018,0.3636,2756.6,2755.7,0.00077977]
[1645866008222,5.3636,2756.4,2755.7,0.00077977]
[1645866008417,5.03326809,2756.5,2755.5,0.01304025]
[1645866008418,17.9136,2755.8,2755.5,0.01304025]
[1645866008650,0.3636,2756.0,2755.5,0.01304025]
[1645866009255,0.3636,2756.0,2754.7,0.91486136]
[1645866009454,0.3636,2756.0,2755.2,0.01355798]
[1645866009455,0.3636,2755.3,2755.2,0.01355798]
[1645866009654,0.3636,2755.3,2755.2,1.29052266]
[1645866009952,1.35297,2755.8,2755.2,1.29052266]
[1645866009953,1.1451,2755.8,2755.2,1.29052266]
[1645866010154,1.0,2755.8,2755.2,1.29052266]
[1645866010353,1.0,2755.8,2755.2,1.27696468]
[1645866010552,0.5,2756.2,2755.2,1.27696468]
[1645866010753,0.5,2756.2,2754.5,12.91602371]
[1645866010754,0.5,2756.2,2755.7,1.37216899]
[1645866010953,0.5,2756.2,2755.4,0.00102139]
[1645866011356,0.9075619,2756.4,2754.7,5.6009523]
[1645866011552,3.6301732,2756.6,2754.8,0.91486136]
[1645866011759,3.8056,2756.8,2755.7,0.00338892]
[1645866011956,0.5,2756.8,2755.8,0.433]
[1645866012152,0.5,2756.8,2756.0,0.90714]
[1645866012403,0.5,2756.8,2756.3,1.18074849]
[1645866012602,0.00421036,2757.3,2756.3,1.18074849]
[1645866012806,1.53311963,2757.2,2756.3,1.18074849]
[1645866013106,0.00319963,2756.7,2755.9,1.0]
[1645866013504,0.00319963,2756.7,2755.8,0.25]
[1645866013706,0.00319963,2756.7,2755.6,2.7201]
[1645866013909,0.3636,2757.0,2755.6,6.2201]
[1645866014107,1.82698311,2757.3,2756.6,1.43901251]
[1645866014316,0.00319928,2756.7,2756.6,1.43901251]
[1645866015113,1.53322188,2757.0,2756.6,1.43901251]
[1645866015311,2.7218755,2757.3,2756.6,1.43901251]
[1645866015509,0.00443205,2756.8,2756.6,1.43901251]
[1645866016355,0.90725,2757.2,2756.6,1.43901251]
[1645866016558,1.53317265,2757.1,2756.6,1.43901251]
[1645866016756,0.00443203,2756.8,2756.6,1.43901251]
[1645866017155,0.00443203,2756.8,2756.1,1.0]
[1645866017555,0.3636,2757.1,2756.1,1.0]
[1645866017755,0.3636,2757.1,2755.7,0.25]
[1645866017756,0.3636,2756.9,2755.7,0.25]
[1645866017955,0.36803192,2756.7,2755.7,0.25]
[1645866018161,1.5333589,2756.6,2755.6,2.7201]
[1645866018458,0.00443192,2756.7,2756.0,1.25191287]
[1645866018860,0.90731,2757.0,2756.0,1.25191287]
[1645866019060,0.00443181,2756.7,2756.0,1.25191287]
[1645866019920,0.3636,2756.9,2756.0,1.25191287]
[1645866020121,11.4136,2756.7,2755.2,2.24431802]
[1645866020326,11.4136,2756.7,2754.9,1.36356022]
[1645866020327,11.4136,2756.5,2755.0,1.25]
[1645866020523,0.3636,2756.1,2755.0,0.25]
[1645866020822,6.5333708,2756.4,2754.9,3.01564324]
[1645866020823,1.89739104,2756.0,2754.9,3.01564324]
[1645866021022,0.3636,2756.0,2754.9,3.01564324]
[1645866021220,0.3636,2756.0,2755.3,1.07620239]
[1645866021424,0.3636,2756.0,2754.9,0.01644324]
[1645866021425,11.4136,2756.0,2754.9,0.01644324]
[1645866021623,0.3636,2755.8,2754.9,0.01644324]
[1645866022025,0.3636,2755.2,2754.9,0.01644324]
[1645866022223,0.3636,2755.6,2754.9,0.01644324]
[1645866022421,0.3636,2755.6,2754.4,0.00286235]
[1645866022622,0.3636,2755.6,2754.8,0.00411097]
[1645866022623,2.1794031,2755.5,2754.8,0.00411097]
[1645866022822,0.3636,2755.2,2754.8,0.00411097]
[1645866023022,11.4136,2755.2,2754.8,0.00411097]
[1645866023426,11.4136,2755.0,2754.8,0.00411097]
[1645866023651,11.4136,2755.0,2754.4,0.00286235]
[1645866023652,1.8161861,2754.9,2754.4,0.00286235]
[1645866023951,13.39596267,2754.9,2754.8,0.00411097]
[1645866024148,11.4136,2754.9,2754.8,0.00411097]
[1645866024348,0.90813,2755.0,2754.8,0.00411097]
[1645866024555,0.9080822,2755.1,2754.8,0.00411097]
[1645866024750,1.96093,2755.4,2754.1,0.00286235]
[1645866024948,0.3636,2755.3,2754.1,0.00286235]
[1645866025348,0.90787,2755.3,2754.8,0.00411097]
[1645866025951,0.90787,2755.3,2754.5,0.00286235]
[1645866026148,1.27147,2755.3,2754.5,0.00286235]
[1645866026352,0.3636,2755.1,2754.8,0.00411097]
[1645866026549,0.90787,2755.3,2754.8,0.00411097]
[1645866026951,0.3636,2755.2,2754.8,0.00411097]
[1645866027306,1.27165,2754.8,2754.0,0.00286235]
[1645866027504,2.03320544,2755.2,2754.5,0.01644544]
[1645866027505,1.96122,2755.2,2754.5,0.01644544]
[1645866027703,6.49950798,2755.6,2754.5,0.01644544]
[1645866027904,0.3636,2755.2,2754.5,0.01644544]
[1645866028304,12.3215528,2755.1,2754.5,0.01644544]
[1645866028502,12.3215528,2755.1,2754.2,0.00286235]
[1645866028503,1.2715528,2755.1,2754.2,0.00286235]
[1645866028709,1.2715528,2755.1,2754.7,0.00411104]
[1645866029113,0.90796,2755.0,2754.7,0.00411104]
[1645866029514,0.90796,2755.0,2754.2,0.00286235]
[1645866029712,0.3636,2754.9,2754.2,0.00286235]
[1645866030014,0.3636,2754.9,2753.4,3.73062136]
[1645866030015,0.9080472,2754.8,2754.7,0.00411104]
[1645866030916,0.9080472,2754.8,2754.0,0.00286235]
[1645866031167,0.9080472,2754.8,2754.6,0.00411119]
[1645866031764,11.4136,2754.7,2754.6,0.00411119]
[1645866031969,11.4136,2754.5,2753.9,0.00286235]
[1645866032168,11.4136,2754.3,2753.3,0.00286235]
[1645866032367,11.94201247,2754.1,2753.1,0.25286235]
[1645866032567,0.90846,2754.1,2753.2,0.00286235]
[1645866032770,0.15480037,2754.4,2753.2,0.00286235]
[1645866032967,0.15480037,2754.4,2754.0,1.38191627]
[1645866033165,0.15480037,2754.4,2753.2,0.00286235]
[1645866033166,0.00960037,2754.4,2753.2,0.00286235]
[1645866033770,0.90828,2754.1,2753.2,0.00286235]
[1645866034171,0.90828,2754.1,2753.2,1.03473103]
[1645866034371,12.32188,2754.1,2753.2,0.00286235]
[1645866034794,12.32188,2754.1,2753.5,0.00375656]
[1645866034995,1.27188,2754.1,2753.5,0.00375656]
[1645866035397,1.2718984,2754.0,2753.5,0.00375656]
[1645866035596,1.2718984,2754.0,2753.4,0.00286235]
[1645866035796,0.9082984,2754.0,2753.7,0.00375635]
[1645866036897,0.9082984,2754.0,2752.9,0.00286235]
[1645866037096,0.9082984,2754.0,2753.7,0.00375629]
[1645866037295,0.9082984,2754.0,2752.8,0.22164618]
[1645866037496,0.90828,2754.1,2752.8,0.22164618]
[1645866037899,0.90828,2754.1,2753.7,1.22133871]
[1645866038549,0.90828,2754.1,2752.8,1.86674618]
[1645866039449,0.90828,2754.1,2753.7,1.4277256]
[1645866040250,0.9082145,2754.3,2753.7,1.4277256]
[1645866040452,0.00960037,2754.4,2753.7,1.4277256]
[1645866040651,0.00960037,2754.4,2753.6,0.13415897]
[1645866040652,0.3668415,2754.0,2753.6,0.13415897]
[1645866040850,0.3636,2753.8,2753.6,0.13415897]
[1645866041263,11.4136,2753.7,2753.6,0.13415897]
[1645866042314,4.44158555,2754.7,2753.6,0.13415897]
[1645866042515,3.78275255,2755.0,2754.1,0.01267041]
[1645866042516,0.13652915,2755.0,2754.1,0.01267041]
[1645866042716,0.13652915,2755.6,2754.1,0.01267041]
[1645866042717,0.2730583,2755.7,2754.6,5.0]
[1645866042917,0.2730583,2755.7,2754.9,5.0]
[1645866042918,5.83e-05,2755.7,2754.9,5.0]
[1645866043226,5.83e-05,2755.7,2755.3,5.0]
[1645866043421,0.17940075,2755.9,2755.4,10.6451]
[1645866043422,7.16e-05,2755.8,2755.4,10.6451]
[1645866043619,7.16e-05,2755.8,2755.4,7.0]
[1645866043820,7.16e-05,2755.8,2755.5,1.36800707]
[1645866044023,7.16e-05,2755.8,2755.4,7.0]
[1645866044221,7.16e-05,2755.8,2755.0,2.8341]
[1645866045030,7.16e-05,2755.8,2755.1,1.37451261]
[1645866045222,7.16e-05,2755.8,2755.0,2.8341]
[1645866045827,7.16e-05,2755.8,2754.6,0.1451]
[1645866046051,7.16e-05,2755.8,2754.8,1.18060041]
[1645866046459,11.4136,2755.7,2754.5,4.288]
[1645866046658,0.00443715,2755.4,2754.5,3.1029]
[1645866046859,0.00443715,2755.4,2754.3,1.05284]
[1645866047262,0.00443715,2755.4,2754.3,1.48584]
[1645866047662,7.16e-05,2755.8,2754.3,1.48584]
[1645866047861,0.00443734,2755.0,2754.3,1.48584]
[1645866048261,0.00443734,2755.0,2754.5,1.81504]
[1645866048665,0.00443734,2755.0,2754.6,0.1452]
[1645866048862,0.0428716,2755.6,2754.6,0.1452]
[1645866049262,0.00443739,2754.9,2754.6,0.1452]
[1645866049464,0.00443739,2754.9,2754.6,1.96033]
[1645866049894,3.739e-05,2754.9,2754.6,1.96033]
[1645866050099,0.0428716,2755.5,2754.7,0.433]
[1645866050296,7.16e-05,2755.5,2754.8,0.1451]
[1645866050498,7.16e-05,2755.5,2755.0,0.90735]
[1645866050698,7.16e-05,2755.5,2755.1,2.3927043]
[1645866051098,7.16e-05,2755.5,2755.2,1.24233899]
[1645866051296,7.16e-05,2755.5,2755.3,0.5781]
[1645866051501,0.00443715,2755.4,2755.3,0.5781]
[1645866051700,3.715e-05,2755.4,2755.3,0.5781]
[1645866051902,3.715e-05,2755.4,2755.3,1.48544]
[1645866052104,0.0428716,2755.6,2755.4,7.0]
[1645866052105,0.00018035,2755.6,2755.4,7.0]
[1645866052299,7.16e-05,2755.8,2755.4,7.0]
[1645866052504,7.16e-05,2755.8,2755.5,3.5]
[1645866052700,7.16e-05,2755.8,2755.4,7.0]
[1645866052900,7.16e-05,2755.8,2755.6,0.90733]
[1645866053099,7.16e-05,2755.8,2755.7,1.32191235]
[1645866053571,7.16e-05,2755.8,2755.7,5.25491235]
[1645866053969,7.16e-05,2755.8,2755.7,1.75491235]
[1645866055375,2.915e-05,2756.2,2755.8,7.0]
[1645866055673,2.915e-05,2756.2,2756.0,0.9071]
[1645866055873,2.915e-05,2756.2,2756.0,1.3401]
[1645866056074,2.915e-05,2756.2,2756.0,0.433]
[1645866056277,2.915e-05,2756.2,2755.9,1.8142]
[1645866056474,0.004439,2756.2,2755.9,1.8142]
[1645866056674,1.63576071,2755.8,2755.7,8.57961235]
[1645866059617,1.01496071,2755.8,2755.7,8.57961235]
[1645866059816,6.071e-05,2755.8,2755.7,8.57961235]
[1645866060015,6.071e-05,2755.8,2755.7,12.72098906]
[1645866060415,6.071e-05,2755.8,2755.7,9.52098906]
[1645866060616,0.13652915,2756.6,2756.0,0.90692]
[1645866060617,2.915e-05,2756.6,2756.0,0.90692]
[1645866060816,2.915e-05,2756.6,2756.4,0.01213331]
[1645866061072,2.915e-05,2756.6,2756.5,7.2556]
[1645866061774,3.8636,2757.4,2756.5,7.2556]
[1645866061971,0.00446448,2757.3,2756.6,1.26636437]
[1645866062774,0.00446448,2757.5,2756.5,7.2556]
[1645866063173,8.7207793,2757.7,2756.5,7.2556]
[1645866063174,0.00446448,2757.6,2756.5,7.2556]
[1645866063785,3.86806448,2757.6,2756.7,1.39468375]
[1645866064083,3.86806448,2757.6,2756.5,7.2556]
[1645866064084,2.22587713,2757.0,2756.5,7.2556]
[1645866064478,1.86227713,2757.0,2756.5,7.2556]
[1645866064901,0.00444092,2756.9,2756.5,7.2556]
[1645866065706,1.86227713,2757.0,2756.5,7.2556]
[1645866066109,0.00444094,2756.8,2756.5,7.2556]
[1645866066309,4.094e-05,2756.8,2756.5,7.2556]
[1645866066516,4.094e-05,2756.8,2756.5,7.8944092]
[1645866066715,4.094e-05,2756.8,2756.5,7.6886]
[1645866066911,1.86227713,2757.0,2756.5,7.6886]
[1645866067912,1.86227713,2757.0,2756.5,7.2556]
[1645866069558,0.00444305,2756.9,2756.5,7.2556]
[1645866070562,1.86227713,2757.0,2756.6,1.38806152]
[1645866070760,0.00323233,2756.9,2756.6,1.38806152]
[1645866071757,1.86227713,2757.0,2756.6,1.38806152]
[1645866071963,3.239e-05,2756.9,2756.7,18.483]
[1645866072161,0.01292786,2757.3,2756.9,7.0]
[1645866072415,2.786e-05,2757.3,2757.0,3.933]
[1645866072616,2.786e-05,2757.3,2757.1,0.9068]
[1645866072818,0.00446448,2758.3,2757.2,3.933]
[1645866073016,0.00446448,2758.3,2757.2,0.433]
[1645866073218,0.00446448,2758.3,2757.2,1.433]
[1645866073416,0.00446448,2758.3,2757.2,0.433]
[1645866073621,0.00446448,2758.3,2757.5,0.90671]
[1645866073826,0.00446448,2758.3,2757.9,1.19287107]
[1645866074022,0.3636,2758.4,2757.9,1.19287107]
[1645866074425,0.00444573,2758.0,2757.9,1.19287107]
[1645866075425,0.00446448,2758.6,2757.8,0.90662]
[1645866075625,0.00444571,2758.1,2757.9,0.433]
[1645866075824,0.00444571,2758.1,2758.0,8.15813]
[1645866076057,0.00444571,2758.1,2758.0,8.59113]
[1645866076257,4.571e-05,2758.1,2758.0,12.09113]
[1645866076459,0.00446448,2759.1,2758.0,23.14113]
[1645866076659,0.00446448,2759.1,2758.4,5.0]
[1645866076859,2.14317355,2759.2,2758.6,1.10277275]
[1645866077061,2.14317355,2759.2,2758.7,0.433]
[1645866077365,2.14317355,2759.2,2758.2,0.433]
[1645866077559,2.14317355,2759.2,2758.1,0.5]
[1645866077560,0.36806448,2759.1,2758.1,0.5]
[1645866077966,0.00446448,2759.1,2758.0,7.2516]
[1645866078171,0.00446448,2759.1,2758.1,4.40652]
[1645866078367,0.00446448,2759.1,2758.5,1.10602537]
[1645866078573,2.14317355,2759.2,2758.5,1.10602537]
[1645866078767,2.14317355,2759.2,2758.6,0.433]
[1645866078966,2.14763803,2759.2,2758.6,0.433]
[1645866079168,0.0044453,2759.0,2758.6,0.433]
[1645866079366,0.0044453,2759.0,2758.6,1.33935]
[1645866079567,0.0044453,2759.0,2758.6,4.83935]
[1645866079819,0.0044453,2759.0,2758.6,6.13935]
[1645866080014,0.0044453,2759.0,2758.7,7.2498]
[1645866080212,2.14317355,2759.2,2758.8,0.433]
[1645866080413,2.14317355,2759.2,2758.7,7.72683791]
[1645866080614,2.14317355,2759.2,2758.7,6.72683791]
[1645866080816,2.50677355,2759.2,2758.7,6.72683791]
[1645866083765,2.50677355,2759.2,2758.8,0.1449]
[1645866083766,2.14317355,2759.2,2758.8,0.1449]
[1645866083965,0.00442442,2759.1,2758.8,0.1449]
[1645866084965,0.02739417,2759.6,2758.9,7.0]
[1645866085168,0.02739417,2759.6,2759.0,3.6449]
[1645866085169,0.00442442,2759.1,2759.0,3.6449]
[1645866085367,0.00442442,2759.1,2759.0,4.8511]
[1645866085368,2.442e-05,2759.1,2759.0,4.8511]
[1645866085564,2.442e-05,2759.1,2759.0,6.2841]
[1645866086168,0.02739417,2759.6,2759.1,0.9060218]
[1645866086369,0.02739417,2759.6,2759.2,4.0779]
[1645866086569,0.02739417,2759.6,2759.2,0.5779]
[1645866086969,0.02739417,2759.6,2759.2,4.98392]
[1645866087170,0.02739417,2759.6,2759.2,6.18996]
[1645866087408,0.07996655,2759.8,2759.5,0.9059186]
[1645866087409,7.821e-05,2759.8,2759.5,0.9059186]
[1645866087606,7.821e-05,2759.8,2759.6,4.0779]
[1645866087806,7.821e-05,2759.8,2759.6,0.5779]
[1645866088005,7.821e-05,2759.8,2759.6,1.5779]
[1645866088207,7.821e-05,2759.8,2759.6,0.5779]
[1645866088416,7.821e-05,2759.8,2759.6,1.48381]
[1645866088811,0.0045023,2759.8,2759.6,1.48381]
[1645866089409,0.0045023,2759.8,2759.6,2.3896676]
[1645866089811,7.821e-05,2759.8,2759.6,0.90591]
[1645866090011,7.821e-05,2759.8,2759.5,4.80571]
[1645866090012,0.0045023,2759.8,2759.5,4.80571]
[1645866091070,7.821e-05,2759.8,2759.5,4.80571]
[1645866091273,0.00450232,2759.8,2759.5,4.80571]
[1645866092275,7.821e-05,2759.8,2759.6,1.43731431]
[1645866092476,0.00450232,2759.8,2759.7,0.1449]
[1645866092878,0.00450232,2759.8,2759.6,3.6449]
[1645866093275,0.00450232,2759.8,2759.7,1.33886]
[1645866093576,0.00154261,2760.2,2759.8,6.0]
[1645866093873,0.00154261,2760.2,2759.8,8.81173]
[1645866094376,0.00154261,2760.2,2759.9,0.90586]
[1645866094576,0.00154261,2760.2,2759.9,4.40586]
[1645866094809,4.261e-05,2760.2,2759.9,2.20586]
[1645866095001,2.395e-05,2760.1,2760.0,11.67787298]
[1645866095202,2.395e-05,2760.1,2760.0,1.433]
[1645866095608,2.395e-05,2760.1,2760.0,0.433]
[1645866095802,4.261e-05,2760.2,2760.0,0.433]
[1645866096406,0.12810701,2760.4,2760.2,18.05]
[1645866096407,0.07775059,2760.4,2760.2,18.05]
[1645866096605,0.02739417,2760.8,2760.4,0.9057]
[1645866096808,0.00110798,2760.7,2760.4,1.21889975]
[1645866097206,0.0042945,2760.7,2760.4,1.21889975]
[1645866097404,0.0042945,2760.7,2760.3,3.11139]
[1645866097405,0.0042945,2760.7,2760.5,2.8544]
[1645866098007,0.0042945,2760.7,2760.6,0.90571]
[1645866098213,0.00110798,2760.7,2760.6,0.90571]
[1645866098412,0.00110798,2760.7,2760.6,2.3088106]
[1645866098655,0.0042945,2760.7,2760.6,2.3088106]
[1645866098856,9.45e-05,2760.7,2760.6,2.3088106]
[1645866099057,9.45e-05,2760.7,2760.6,13.3588106]
[1645866099258,9.45e-05,2760.7,2760.6,3.6088106]
[1645866099858,9.45e-05,2760.7,2760.6,3.3088106]
[1645866100061,0.02527271,2760.7,2760.6,1.4031006]
[1645866100461,0.02527271,2760.7,2760.6,1.69714298]
[1645866100961,0.0514644,2760.7,2760.6,1.69714298]
[1645866101659,0.02628619,2760.7,2760.6,2.43014298]
[1645866102314,0.13597728,2761.6,2760.7,7.0]
[1645866102503,0.00449053,2761.5,2760.9,0.90552]
[1645866102702,0.00449053,2762.1,2761.3,0.5]
[1645866102903,0.02517821,2762.1,2760.9,0.3]
[1645866103105,0.02517821,2762.1,2761.4,1.24937638]
[1645866103708,0.00449053,2762.2,2761.3,0.5]
[1645866104109,11.05449053,2762.2,2761.3,0.5]
[1645866104310,0.3636,2761.9,2761.3,0.5]
[1645866104508,11.05,2762.0,2760.9,0.00125808]
[1645866104509,0.3636,2761.7,2760.9,0.00125808]
[1645866104708,0.00449053,2761.8,2760.7,1.20641385]
[1645866104907,0.00449053,2761.6,2760.7,1.20641385]
[1645866105109,0.00449053,2762.0,2760.7,1.20641385]
[1645866105308,0.00449053,2762.0,2760.7,2.41195385]
[1645866105507,0.00449053,2762.2,2760.7,2.41195385]
[1645866105708,0.00449053,2762.2,2760.7,2.11195385]
[1645866106156,3.50449053,2762.2,2760.9,0.90558]
[1645866106358,0.00449053,2762.2,2760.9,0.90558]
[1645866106751,0.3636,2762.1,2760.8,1.81104]
[1645866106952,0.00317092,2761.7,2761.5,0.5]
[1645866107555,0.00317092,2761.7,2761.5,0.90541]
[1645866107753,0.00449053,2762.2,2761.1,1.81083]
[1645866108152,0.00442766,2761.7,2761.1,1.81083]
[1645866108356,0.00442766,2761.7,2761.5,1.1369459]
[1645866108556,0.00442766,2761.7,2761.1,1.81083]
[1645866108958,0.00449053,2762.2,2761.1,1.81083]
[1645866109359,0.00442775,2761.5,2761.1,1.81083]
[1645866110224,0.00449053,2762.2,2761.1,1.81083]
[1645866110426,0.00442779,2761.4,2761.1,2.24383]
[1645866110626,0.00442779,2761.4,2761.2,1.25164319]
[1645866110825,0.00442779,2761.4,2761.1,2.24383]
[1645866111227,0.00442779,2761.4,2761.2,0.5]
[1645866111429,0.00449053,2762.2,2761.1,2.24383]
[1645866111826,0.00442782,2761.4,2761.2,1.07789766]
[1645866112028,0.00442782,2761.4,2761.3,0.90541]
[1645866112427,0.00442782,2761.4,2761.3,1.20541]
[1645866112628,0.06,2762.4,2761.3,6.20541]
[1645866112827,0.06,2762.4,2761.6,16.05]
[1645866113030,0.00449053,2762.7,2762.1,5.0]
[1645866113227,7.4455,2763.7,2762.1,5.0]
[1645866113228,0.00449053,2763.2,2762.6,1.10636088]
[1645866113428,0.04263176,2763.2,2762.7,0.5776]
[1645866114072,0.04263176,2763.2,2762.5,0.00086226]